Workbook

Sheet 成绩
A1: 2019年下半年河东新区部分事业单位公开考试招聘工作人员体检结果 及第一批递补进入体检人员名单
A2: 岗位 代码 | B2: 招聘单位 | C2: 招聘专业 | D2: 招聘人数 | E2: 准考证号 | F2: 姓名 | G2: 公共科目成绩 | H2: 政策性加分 | I2: 笔试总成绩（折合前） | J2: 笔试总成绩（折合后） | K2: 面试资格审查结果 | L2: 面试成绩 | M2: 面试成绩（折合后） | N2: 考试总成绩 | O2: 排名 | P2: 是否进入体检 | Q2: 体检结果是否合格 | R2: 是否申请复检
A3: 628001 | B3: 遂宁市河东新区公办小学:洋渡实验学校、仁里小学校 | C3: 全日制普通高校本科及以上：小学教育、中国语言文学类、汉语言文学类 | D3: 11 | E3: 1628001041616 | F3: 万静 | G3: 70.50 | H3: 6 | I3: 76.50 | J3: =I3*50% -> 38.25 | K3: 合格 | L3: 81.30 | M3: =L3*50% -> 40.65 | N3: 78.90 | O3: 1 | P3: 是 | Q3: 是
E4: 1628001041601 | F4: 姚瑶 | G4: 67.00 | I4: 67.00 | J4: 33.50 | K4: 合格 | L4: 88.67 | M4: 44.34 | N4: 77.84 | O4: 2 | P4: 是 | Q4: 是
E5: 1628001041518 | F5: 刘梦雪 | G5: 68.50 | I5: 68.50 | J5: 34.25 | K5: 合格 | L5: 87.01 | M5: 43.51 | N5: 77.76 | O5: 3 | P5: 是 | Q5: 是
E6: 1628001041406 | F6: 刘珊 | G6: 72.50 | I6: 72.50 | J6: 36.25 | K6: 合格 | L6: 82.24 | M6: 41.12 | N6: 77.37 | O6: 4 | P6: 是 | Q6: 是
E7: 1628001041603 | F7: 孙清清 | G7: 74.00 | I7: 74.00 | J7: 37.00 | K7: 合格 | L7: 79.50 | M7: 39.75 | N7: 76.75 | O7: 5 | P7: 是 | Q7: 是
E8: 1628001041412 | F8: 黄慧荣 | G8: 70.00 | I8: 70.00 | J8: 35.00 | K8: 合格 | L8: 81.72 | M8: 40.86 | N8: 75.86 | O8: 6 | P8: 是 | Q8: 是
E9: 1628001041419 | F9: 龚雪琴 | G9: 70.50 | I9: 70.50 | J9: 35.25 | K9: 合格 | L9: 81.16 | M9: 40.58 | N9: 75.83 | O9: 7 | P9: 是 | Q9: 是
E10: 1628001041512 | F10: 权小娟 | G10: 69.50 | I10: 69.50 | J10: 34.75 | K10: 合格 | L10: 81.27 | M10: 40.64 | N10: 75.39 | O10: 8 | P10: 是 | Q10: 是
E11: 1628001041522 | F11: 伍玲梅 | G11: 68.00 | I11: 68.00 | J11: 34.00 | K11: 合格 | L11: 82.72 | M11: 41.36 | N11: 75.36 | O11: 9 | P11: 是 | Q11: 是
E12: 1628001041505 | F12: 刘丽 | G12: 63.00 | I12: 63.00 | J12: 31.50 | K12: 合格 | L12: 87.62 | M12: 43.81 | N12: 75.31 | O12: 10 | P12: 是 | Q12: 是
E13: 1628001041606 | F13: 王淼 | G13: 69.50 | I13: 69.50 | J13: 34.75 | K13: 合格 | L13: 80.83 | M13: 40.42 | N13: 75.17 | O13: 11 | P13: 是 | Q13: 是
A14: 岗位 代码 | B14: 招聘单位 | C14: 招聘专业 | D14: 招聘人数 | E14: 准考证号 | F14: 姓名 | G14: 公共科目成绩 | H14: 政策性加分 | I14: 笔试总成绩（折合前） | J14: 笔试总成绩（折合后） | K14: 面试资格审查结果 | L14: 面试成绩 | M14: 面试成绩（折合后） | N14: 考试总成绩 | O14: 排名 | P14: 是否进入体检 | Q14: 体检结果是否合格 | R14: 是否申请复检
A15: 628002 | B15: 遂宁市河东新区紫竹路小学校 | C15: 全日制普通高校本科及以上：小学教育、中国语言文学类、汉语言文学类 | D15: 13 | E15: 1628002041717 | F15: 郭程程 | G15: 77.00 | H15: 2 | I15: 79.00 | J15: =I15*50% -> 39.50 | K15: 合格 | L15: 84.67 | M15: =L15*50% -> 42.34 | N15: 81.84 | O15: 1 | P15: 是 | Q15: 是
E16: 1628002042014 | F16: 向茜茜 | G16: 78.50 | I16: 78.50 | J16: 39.25 | K16: 合格 | L16: 83.36 | M16: 41.68 | N16: 80.93 | O16: 2 | P16: 是 | Q16: 是
E17: 1628002041819 | F17: 古小翠 | G17: 78.00 | I17: 78.00 | J17: 39.00 | K17: 合格 | L17: 82.91 | M17: 41.46 | N17: 80.46 | O17: 3 | P17: 是 | Q17: 是
E18: 1628002041723 | F18: 李鑫 | G18: 75.00 | I18: 75.00 | J18: 37.50 | K18: 合格 | L18: 84.20 | M18: 42.10 | N18: 79.60 | O18: 4 | P18: 是 | Q18: 是
E19: 1628002042013 | F19: 冯建 | G19: 75.00 | I19: 75.00 | J19: 37.50 | K19: 合格 | L19: 83.74 | M19: 41.87 | N19: 79.37 | O19: 5 | P19: 是 | Q19: 是
E20: 1628002041917 | F20: 刘思佚 | G20: 71.00 | I20: 71.00 | J20: 35.50 | K20: 合格 | L20: 83.90 | M20: 41.95 | N20: 77.45 | O20: 6 | P20: 是 | Q20: 是
E21: 1628002041712 | F21: 梁露 | G21: 69.00 | I21: 69.00 | J21: 34.50 | K21: 合格 | L21: 84.86 | M21: 42.43 | N21: 76.93 | O21: 7 | P21: 是 | Q21: 是
E22: 1628002041806 | F22: 叶少英 | G22: 68.50 | I22: 68.50 | J22: 34.25 | K22: 合格 | L22: 85.30 | M22: 42.65 | N22: 76.90 | O22: 8 | P22: 是 | Q22: 是
E23: 1628002042103 | F23: 邓力友 | G23: 69.00 | I23: 69.00 | J23: 34.50 | K23: 合格 | L23: 84.56 | M23: 42.28 | N23: 76.78 | O23: 9 | P23: 是 | Q23: 是
E24: 1628002041907 | F24: 蒋琴 | G24: 69.00 | I24: 69.00 | J24: 34.50 | K24: 合格 | L24: 83.59 | M24: 41.80 | N24: 76.30 | O24: 10 | P24: 是 | Q24: 是
E25: 1628002042102 | F25: 郑佳欣 | G25: 71.50 | I25: 71.50 | J25: 35.75 | K25: 合格 | L25: 81.01 | M25: 40.51 | N25: 76.26 | O25: 11 | P25: 是 | Q25: 是
E26: 1628002041823 | F26: 周雪连 | G26: 71.00 | I26: 71.00 | J26: 35.50 | K26: 合格 | L26: 81.34 | M26: 40.67 | N26: 76.17 | O26: 12 | P26: 是 | Q26: 是
E27: 1628002041908 | F27: 王涛华 | G27: 66.50 | I27: 66.50 | J27: 33.25 | K27: 合格 | L27: 85.47 | M27: 42.74 | N27: 75.99 | O27: 13 | P27: 是 | Q27: 是
A28: 岗位 代码 | B28: 招聘单位 | C28: 招聘专业 | D28: 招聘人数 | E28: 准考证号 | F28: 姓名 | G28: 公共科目成绩 | H28: 政策性加分 | I28: 笔试总成绩（折合前） | J28: 笔试总成绩（折合后） | K28: 面试资格审查结果 | L28: 面试成绩 | M28: 面试成绩（折合后） | N28: 考试总成绩 | O28: 排名 | P28: 是否进入体检 | Q28: 体检结果是否合格 | R28: 是否申请复检
A29: 628003 | B29: 遂宁市河东新区紫竹路小学校 | C29: 全日制普通高校本科及以上：小学教育、信息与计算科学、数学与应用数学、数学类 | D29: 14 | E29: 1628003042126 | F29: 胡思容 | G29: 75.50 | I29: 75.50 | J29: =I29*50% -> 37.75 | K29: 合格 | L29: 83.93 | M29: =L29*50% -> 41.97 | N29: 79.72 | O29: 1 | P29: 是 | Q29: 是
E30: 1628003042305 | F30: 强妤 | G30: 73.50 | I30: 73.50 | J30: 36.75 | K30: 合格 | L30: 85.43 | M30: 42.72 | N30: 79.47 | O30: 2 | P30: 是 | Q30: 是
E31: 1628003042413 | F31: 陈淑贤 | G31: 74.00 | I31: 74.00 | J31: 37.00 | K31: 合格 | L31: 84.07 | M31: 42.04 | N31: 79.04 | O31: 3 | P31: 是 | Q31: 是
E32: 1628003042128 | F32: 牟蔚乔 | G32: 69.50 | I32: 69.50 | J32: 34.75 | K32: 合格 | L32: 88.16 | M32: 44.08 | N32: 78.83 | O32: 4 | P32: 是 | Q32: 是
E33: 1628003042407 | F33: 杨琪 | G33: 70.50 | I33: 70.50 | J33: 35.25 | K33: 合格 | L33: 85.33 | M33: 42.67 | N33: 77.92 | O33: 5 | P33: 是 | Q33: 是
E34: 1628003042419 | F34: 黄春芝 | G34: 73.00 | I34: 73.00 | J34: 36.50 | K34: 合格 | L34: 82.19 | M34: 41.10 | N34: 77.60 | O34: 6 | P34: 是 | Q34: 是
E35: 1628003042211 | F35: 刘肖 | G35: 65.00 | I35: 65.00 | J35: 32.50 | K35: 合格 | L35: 88.98 | M35: 44.49 | N35: 76.99 | O35: 7 | P35: 是 | Q35: 是
E36: 1628003042405 | F36: 唐帅 | G36: 68.50 | I36: 68.50 | J36: 34.25 | K36: 合格 | L36: 84.48 | M36: 42.24 | N36: 76.49 | O36: 8 | P36: 是 | Q36: 是
E37: 1628003042306 | F37: 李瑶 | G37: 70.50 | I37: 70.50 | J37: 35.25 | K37: 合格 | L37: 82.47 | M37: 41.24 | N37: 76.49 | O37: 8 | P37: 是 | Q37: 是
E38: 1628003042230 | F38: 黄蕊 | G38: 69.00 | I38: 69.00 | J38: 34.50 | K38: 合格 | L38: 83.42 | M38: 41.71 | N38: 76.21 | O38: 10 | P38: 是 | Q38: 是
E39: 1628003042210 | F39: 赵雪竹 | G39: 65.50 | I39: 65.50 | J39: 32.75 | K39: 合格 | L39: 86.78 | M39: 43.39 | N39: 76.14 | O39: 11 | P39: 是 | Q39: 是
E40: 1628003042325 | F40: 袁佳 | G40: 75.00 | I40: 75.00 | J40: 37.50 | K40: 合格 | L40: 76.82 | M40: 38.41 | N40: 75.91 | O40: 12 | P40: 是 | Q40: 不合格 | R40: 是
E41: 1628003042324 | F41: 周舒婷 | G41: 67.00 | I41: 67.00 | J41: 33.50 | K41: 合格 | L41: 84.63 | M41: 42.32 | N41: 75.82 | O41: 13 | P41: 是 | Q41: 是
E42: 1628003042202 | F42: 王晓丹 | G42: 70.50 | I42: 70.50 | J42: 35.25 | K42: 合格 | L42: 81.02 | M42: 40.51 | N42: 75.76 | O42: 14 | P42: 是 | Q42: 是
A43: 岗位 代码 | B43: 招聘单位 | C43: 招聘专业 | D43: 招聘人数 | E43: 准考证号 | F43: 姓名 | G43: 公共科目成绩 | H43: 政策性加分 | I43: 笔试总成绩（折合前） | J43: 笔试总成绩（折合后） | K43: 面试资格审查结果 | L43: 面试成绩 | M43: 面试成绩（折合后） | N43: 考试总成绩 | O43: 排名 | P43: 是否进入体检 | Q43: 体检结果是否合格 | R43: 是否申请复检
A44: 628004 | B44: 遂宁市河东新区公办小学:洋渡实验学校、河东实验小学校 | C44: 全日制普通高校本科及以上：小学教育、信息与计算科学、数学与应用数学、数学类 | D44: 9 | E44: 1628004042522 | F44: 龙庆 | G44: 79.00 | I44: 79.00 | J44: =I44*50% -> 39.50 | K44: 合格 | L44: 83.03 | M44: =L44*50% -> 41.52 | N44: 81.02 | O44: 1 | P44: 是 | Q44: 是
E45: 1628004042605 | F45: 陈梦琳 | G45: 77.50 | I45: 77.50 | J45: 38.75 | K45: 合格 | L45: 81.16 | M45: 40.58 | N45: 79.33 | O45: 2 | P45: 是 | Q45: 是
E46: 1628004042603 | F46: 李青青 | G46: 67.50 | I46: 67.50 | J46: 33.75 | K46: 合格 | L46: 87.37 | M46: 43.69 | N46: 77.44 | O46: 3 | P46: 是 | Q46: 是
E47: 1628004042520 | F47: 曾晓丽 | G47: 69.00 | I47: 69.00 | J47: 34.50 | K47: 合格 | L47: 83.36 | M47: 41.68 | N47: 76.18 | O47: 4 | P47: 是 | Q47: 是
E48: 1628004042503 | F48: 杜佳艳 | G48: 69.50 | I48: 69.50 | J48: 34.75 | K48: 合格 | L48: 82.70 | M48: 41.35 | N48: 76.10 | O48: 5 | P48: 是 | Q48: 是
E49: 1628004042610 | F49: 陈琴 | G49: 73.00 | I49: 73.00 | J49: 36.50 | K49: 合格 | L49: 78.86 | M49: 39.43 | N49: 75.93 | O49: 6 | P49: 是 | Q49: 是
E50: 1628004042502 | F50: 蒋莎 | G50: 66.50 | I50: 66.50 | J50: 33.25 | K50: 合格 | L50: 81.11 | M50: 40.56 | N50: 73.81 | O50: 7 | P50: 是 | Q50: 是
E51: 1628004042524 | F51: 韩林秀 | G51: 65.00 | I51: 65.00 | J51: 32.50 | K51: 合格 | L51: 82.50 | M51: 41.25 | N51: 73.75 | O51: 8 | P51: 是 | Q51: 是
E52: 1628004042526 | F52: 何云露 | G52: 63.00 | I52: 63.00 | J52: 31.50 | K52: 合格 | L52: 84.29 | M52: 42.15 | N52: 73.65 | O52: 9 | P52: 是 | Q52: 是
A53: 岗位 代码 | B53: 招聘单位 | C53: 招聘专业 | D53: 招聘人数 | E53: 准考证号 | F53: 姓名 | G53: 公共科目成绩 | H53: 政策性加分 | I53: 笔试总成绩（折合前） | J53: 面试资格审查结果 | K53: 资格审查结果 | L53: 面试成绩 | M53: 面试成绩（折合后） | N53: 考试总成绩 | O53: 排名 | P53: 是否进入体检 | Q53: 体检结果是否合格 | R53: 是否申请复检
A54: 628005 | B54: 遂宁市河东新区公办小学:洋渡实验学校、紫竹路小学校、仁里小学校 | C54: 全日制普通高校本科及以上:音乐学、音乐表演、音乐与舞蹈学类 | D54: 5 | E54: 1628005042810 | F54: 李棋梅 | G54: 75.00 | I54: 75.00 | J54: =I54*50% -> 37.50 | K54: 合格 | L54: 82.42 | M54: =L54*50% -> 41.21 | N54: 78.71 | O54: 1 | P54: 是 | Q54: 是
E55: 1628005042914 | F55: 伍凤玉 | G55: 66.00 | I55: 66.00 | J55: 33.00 | K55: 合格 | L55: 87.05 | M55: 43.53 | N55: 76.53 | O55: 2 | P55: 是 | Q55: 放弃
E56: 1628005042729 | F56: 杨晓芳 | G56: 66.00 | I56: 66.00 | J56: 33.00 | K56: 合格 | L56: 85.42 | M56: 42.71 | N56: 75.71 | O56: 3 | P56: 是 | Q56: 是
E57: 1628005042906 | F57: 付今红 | G57: 68.00 | I57: 68.00 | J57: 34.00 | K57: 合格 | L57: 81.44 | M57: 40.72 | N57: 74.72 | O57: 4 | P57: 是 | Q57: 是
E58: 1628005042830 | F58: 黎成凤 | G58: 65.00 | I58: 65.00 | J58: 32.50 | K58: 合格 | L58: 83.83 | M58: 41.92 | N58: 74.42 | O58: 5 | P58: 是 | Q58: 是
E59: 1628005042808 | F59: 赵杰萍 | G59: 69.50 | I59: 69.50 | J59: 34.75 | K59: 合格 | L59: 77.95 | M59: 38.98 | N59: 73.73 | O59: 6 | P59: 递补 进入
A60: 岗位 代码 | B60: 招聘单位 | C60: 招聘专业 | D60: 招聘人数 | E60: 准考证号 | F60: 姓名 | G60: 公共科目成绩 | H60: 政策性加分 | I60: 笔试总成绩（折合前） | J60: 笔试总成绩（折合后） | K60: 面试资格审查结果 | L60: 面试成绩 | M60: 面试成绩（折合后） | N60: 考试总成绩 | O60: 排名 | P60: 是否进入体检 | Q60: 体检结果是否合格 | R60: 是否申请复检
A61: 628006 | B61: 遂宁市河东新区紫竹路小学校 | C61: 全日制普通高校本科及以上:绘画类、美术学类、艺术设计类 | D61: 3 | E61: 1628006043517 | F61: 廖越月 | G61: 80.00 | I61: 80.00 | J61: =I61*50% -> 40.00 | K61: 合格 | L61: 85.72 | M61: =L61*50% -> 42.86 | N61: 82.86 | O61: 1 | P61: 是 | Q61: 是
E62: 1628006060122 | F62: 薛驰 | G62: 74.50 | I62: 74.50 | J62: 37.25 | K62: 合格 | L62: 84.98 | M62: 42.49 | N62: 79.74 | O62: 2 | P62: 是 | Q62: 是
E63: 1628006043030 | F63: 彭玲 | G63: 74.00 | I63: 74.00 | J63: 37.00 | K63: 合格 | L63: 85.04 | M63: 42.52 | N63: 79.52 | O63: 3 | P63: 是 | Q63: 是
A64: 岗位 代码 | B64: 招聘单位 | C64: 招聘专业 | D64: 招聘人数 | E64: 准考证号 | F64: 姓名 | G64: 公共科目成绩 | H64: 政策性加分 | I64: 笔试总成绩（折合前） | J64: 笔试总成绩（折合后） | K64: 面试资格审查结果 | L64: 面试成绩 | M64: 面试成绩（折合后） | N64: 考试总成绩 | O64: 排名 | P64: 是否进入体检 | Q64: 体检结果是否合格 | R64: 是否申请复检
A65: 628007 | B65: 遂宁市河东新区公办小学:洋渡实验学校、紫竹路小学校 | C65: 全日制普通高校本科及以上：体育教育、社会体育指导与管理、体育类 | D65: 9 | E65: 1628007060308 | F65: 敬程 | G65: 72.00 | I65: 72.00 | J65: =I65*50% -> 36.00 | K65: 合格 | L65: 91.05 | M65: =L65*50% -> 45.53 | N65: 81.53 | O65: 1 | P65: 是 | Q65: 是
E66: 1628007060630 | F66: 郭俊秀 | G66: 71.50 | I66: 71.50 | J66: 35.75 | K66: 合格 | L66: 87.07 | M66: 43.54 | N66: 79.29 | O66: 2 | P66: 是 | Q66: 是
E67: 1628007060818 | F67: 樊瑶 | G67: 71.50 | I67: 71.50 | J67: 35.75 | K67: 合格 | L67: 84.39 | M67: 42.20 | N67: 77.95 | O67: 3 | P67: 是 | Q67: 是
E68: 1628007060323 | F68: 刘沛峻 | G68: 71.50 | I68: 71.50 | J68: 35.75 | K68: 合格 | L68: 84.35 | M68: 42.18 | N68: 77.93 | O68: 4 | P68: 是 | Q68: 是
E69: 1628007060814 | F69: 张莉娟 | G69: 69.00 | I69: 69.00 | J69: 34.50 | K69: 合格 | L69: 86.11 | M69: 43.06 | N69: 77.56 | O69: 5 | P69: 是 | Q69: 是
E70: 1628007060801 | F70: 徐利平 | G70: 74.50 | I70: 74.50 | J70: 37.25 | K70: 合格 | L70: 79.48 | M70: 39.74 | N70: 76.99 | O70: 6 | P70: 是 | Q70: 是
E71: 1628007060829 | F71: 吴卓繁 | G71: 70.00 | I71: 70.00 | J71: 35.00 | K71: 合格 | L71: 83.96 | M71: 41.98 | N71: 76.98 | O71: 7 | P71: 是 | Q71: 是
E72: 1628007060723 | F72: 杜万军 | G72: 68.00 | I72: 68.00 | J72: 34.00 | K72: 合格 | L72: 85.93 | M72: 42.97 | N72: 76.97 | O72: 8 | P72: 是 | Q72: 是
E73: 1628007060806 | F73: 肖雄 | G73: 73.00 | I73: 73.00 | J73: 36.50 | K73: 合格 | L73: 80.63 | M73: 40.32 | N73: 76.82 | O73: 9 | P73: 是 | Q73: 是
A74: 岗位 代码 | B74: 招聘单位 | C74: 招聘专业 | D74: 招聘人数 | E74: 准考证号 | F74: 姓名 | G74: 公共科目成绩 | H74: 政策性加分 | I74: 笔试总成绩（折合前） | J74: 笔试总成绩（折合后） | K74: 面试资格审查结果 | L74: 面试成绩 | M74: 面试成绩（折合后） | N74: 考试总成绩 | O74: 排名 | P74: 是否进入体检 | Q74: 体检结果是否合格 | R74: 是否申请复检
A75: 628008 | B75: 遂宁市河东新区公办小学:洋渡实验学校、紫竹路小学校 | C75: 全日制普通高校本科及以上:应用英语、英语类 | D75: 3 | E75: 1628008061030 | F75: 蒋娟 | G75: 82.50 | I75: 82.50 | J75: =I75*50% -> 41.25 | K75: 合格 | L75: 77.14 | M75: =L75*50% -> 38.57 | N75: 79.82 | O75: 1 | P75: 是 | Q75: 是
E76: 1628008061310 | F76: 袁小淑 | G76: 72.00 | I76: 72.00 | J76: 36.00 | K76: 递补进入 | L76: 86.37 | M76: 43.19 | N76: 79.19 | O76: 2 | P76: 是 | Q76: 是
E77: 1628008060912 | F77: 李倩 | G77: 76.50 | I77: 76.50 | J77: 38.25 | K77: 合格 | L77: 79.26 | M77: 39.63 | N77: 77.88 | O77: 3 | P77: 是 | Q77: 是
A78: 岗位 代码 | B78: 招聘单位 | C78: 招聘专业 | D78: 招聘人数 | E78: 准考证号 | F78: 姓名 | G78: 公共科目成绩 | H78: 政策性加分 | I78: 笔试总成绩（折合前） | J78: 笔试总成绩（折合后） | K78: 面试资格审查结果 | L78: 面试成绩 | M78: 面试成绩（折合后） | N78: 考试总成绩 | O78: 排名 | P78: 是否进入体检 | Q78: 体检结果是否合格 | R78: 是否申请复检
A79: 628009 | B79: 遂宁市河东新区公办幼儿园:河东实验幼儿园、紫竹路幼儿园 | C79: 全日制普通高校专科及以上:学前教育 | D79: 12 | E79: 1628009062414 | F79: 刘小莉 | G79: 80.50 | I79: 80.50 | J79: =I79*50% -> 40.25 | K79: 合格 | L79: 87.76 | M79: =L79*50% -> 43.88 | N79: 84.13 | O79: 1 | P79: 是 | Q79: 是
E80: 1628009061819 | F80: 付欣奇 | G80: 75.00 | I80: 75.00 | J80: 37.50 | K80: 合格 | L80: 85.86 | M80: 42.93 | N80: 80.43 | O80: 2 | P80: 是 | Q80: 是
E81: 1628009062030 | F81: 文雯 | G81: 71.00 | I81: 71.00 | J81: 35.50 | K81: 合格 | L81: 87.68 | M81: 43.84 | N81: 79.34 | O81: 3 | P81: 是 | Q81: 是
E82: 1628009061805 | F82: 邓琦 | G82: 74.50 | I82: 74.50 | J82: 37.25 | K82: 合格 | L82: 83.29 | M82: 41.65 | N82: 78.90 | O82: 4 | P82: 是 | Q82: 是
E83: 1628009062229 | F83: 曹河萱 | G83: 74.00 | I83: 74.00 | J83: 37.00 | K83: 合格 | L83: 83.23 | M83: 41.62 | N83: 78.62 | O83: 5 | P83: 是 | Q83: 是
E84: 1628009062119 | F84: 徐源唯 | G84: 71.00 | I84: 71.00 | J84: 35.50 | K84: 合格 | L84: 85.90 | M84: 42.95 | N84: 78.45 | O84: 6 | P84: 是 | Q84: 是
E85: 1628009061428 | F85: 杨佳 | G85: 69.50 | I85: 69.50 | J85: 34.75 | K85: 合格 | L85: 87.11 | M85: 43.56 | N85: 78.31 | O85: 7 | P85: 是 | Q85: 是
E86: 1628009061808 | F86: 许林钰 | G86: 70.00 | I86: 70.00 | J86: 35.00 | K86: 合格 | L86: 86.26 | M86: 43.13 | N86: 78.13 | O86: 8 | P86: 是 | Q86: 是
E87: 1628009061426 | F87: 张笑莹 | G87: 70.50 | I87: 70.50 | J87: 35.25 | K87: 合格 | L87: 85.73 | M87: 42.87 | N87: 78.12 | O87: 9 | P87: 是 | Q87: 是
E88: 1628009062219 | F88: 林永雪 | G88: 69.50 | I88: 69.50 | J88: 34.75 | K88: 合格 | L88: 85.90 | M88: 42.95 | N88: 77.70 | O88: 10 | P88: 是 | Q88: 是
E89: 1628009061614 | F89: 王馨澜 | G89: 71.50 | I89: 71.50 | J89: 35.75 | K89: 合格 | L89: 83.84 | M89: 41.92 | N89: 77.67 | O89: 11 | P89: 是 | Q89: 是
E90: 1628009061915 | F90: 李艳萍 | G90: 66.00 | I90: 66.00 | J90: 33.00 | K90: 合格 | L90: 88.38 | M90: 44.19 | N90: 77.19 | O90: 12 | P90: 是 | Q90: 是
